{"text_format":"2","workbook":"xlsx","n_sheets":8,"sheets":["Estimativa","Planilha","Manutenção","Manutenção Preventiva","Composição","BDI_materiais","BDI_serviços","Encargos Sociais"],"not_rendered":{"charts":0,"images":0,"macros":0,"external_links":0,"defined_names":7,"comments":0,"pivot_tables":0},"unopened":[],"bounds":{"document_bytes":16777216,"sheet_cells":100000,"run_cost":"one","rows_first":2000,"rows_last":500,"rows_between":2000,"halvings":0,"cell_chars":16384,"cell_head_chars":4096},"cells_cut":0,"cells_raw":0,"read":"whole","date_system":"1900"}

{"sheet":"Estimativa","index":0,"n_rows":26,"n_cols":21,"rows_kept":26,"cut":false,"hidden":false,"merged":[[16,0,16,12],[17,0,17,12],[18,0,18,12],[19,0,19,12],[2,0,2,12],[8,0,8,11],[11,0,11,12],[12,0,12,12],[13,0,13,12],[14,0,14,12],[15,0,15,12]]}
[]
[]
["Quadro - 1  VALOR ANUAL MÁXIMO ESTIMADO PARA MANUTENÇÕES",{"$nulls":16},"Guraita",7.84]
["Unidade","Ano de Inauguração","Idade das\nUnidades (anos)","Área do Terreno (m²)","Área Construída (m²)","CUB (R$/m²)","Base de Calculo IPTU","Valor do imóvel utilizado (R$)","Valor estimado para manutenção - IN RFB nº 1700/2017 - (R$)","Ano da Ultima Reforma","Percentual anual de obsolescência do imóvel (%)","Acréscimo anual sobre o valor de obsolescência do imóvel (R$)","Valor anual máximo estimado para manutenção (R$)",{"$nulls":4},"predio",{"$f":"179*2","v":358}]
["4ª/SR",1987,{"$f":"2024-B5","v":37},10626.03,2656.68,2259.42,10460110.689999999,{"$f":"G5","v":10460110.689999999},{"$f":"ROUND(H5*4%,2)","v":418404.43},2013,1.4999999999999999E-2,{"$f":"ROUND(H5*K5,2)","v":156901.66},{"$f":"I5+L5","v":575306.09},{"$nulls":4},"auditorio",283,null,{"$f":"D8/10000","v":67.431505000000001}]
["4ª/EPR",1975,{"$f":"2024-B6","v":49},315,285.62,2136.33,224000,{"$f":"G6","v":224000},{"$f":"ROUND(H6*4%,2)","v":8960},2020,8.0000000000000002E-3,{"$f":"ROUND(H6*K6,2)","v":1792},{"$f":"I6+L6","v":10752},{"$nulls":4},"alojamento",367,null,{"$f":"U5*15000","v":1011472.5750000001}]
["4ª/UEM",1986,38,31110.83,2026.65,1043.8399999999999,"x",{"$f":"E7*F7+((D7-E7)/10000*12065.83)","v":2150590.81315694},86023.63,2019,8.9999999999999993E-3,19355.32,105378.95000000001,{"$nulls":4},"hipo",416]
["4ª/CIB ",1983,41,674315.05,{"$f":"S15","v":3060.84},1043.8399999999999,"x",{"$f":"E8*F8+((D8-E8)/10000*12065.83)","v":4004951.1440644301},160198.04999999999,2013,1.4999999999999999E-2,60074.27,220272.31999999998,{"$nulls":4},"pisicna",343]
["TOTAL ESTIMADO ANUAL DE MANUTENÇÃO",{"$nulls":11},{"$f":"SUM(M5:M8)","v":911709.36},{"$nulls":4},"casa",460]
[{"$nulls":17},"gaplão ração",{"$f":"12*35","v":420}]
[{"$nulls":17},"captação",{"$f":"8*5","v":40}]
["1 – As fontes para se estabelecer o “Valor do imóvel (R$)” foram: Área Construída imóveis x CUB/m2 ou a base do de cálculo do IPTU/2024",{"$nulls":16},"galpão projeto amanha",{"$f":"15*19","v":285}]
["2 – O Percentual anual de obsolescência do imóvel (%) foi estabelecido com o seguinte critério: o mínimo corresponderia a 0,5%, sendo acrescido de 0,1% a cada ano entre a última reforma do imóvel e o atual exercício, limitado ao percentual de 1,5% ao ano",{"$nulls":16},"casinha viveiro",{"$f":"9*9","v":81}]
["3 – A fórmula de cálculo para os itens abaixo são: "]
["3.1 – “Valor estimado para manutenção - IN RFB nº 1700/2017 - (R$)”: “Valor do imóvel (R$)” x 4%",{"$nulls":16},"total",{"$f":"SUM(S3:S13)","v":3060.84}]
["3.2 – “Acréscimo anual sobre o valor de obsolescência do imóvel (R$)”: “Valor estimado para manutenção - IN RFB nº 1700/2017 - (R$)” x “Percentual anual de obsolescência do imóvel (%)”. "]
["3.3 – “Valor anual máximo estimado para manutenção (R$)”: “Valor estimado para manutenção - IN RFB nº 1700/2017 - (R$)” + “Acréscimo anual sobre o valor de obsolescência do imóvel (R$)”"]
["4 – Ressalta-se que os cálculos de cada Unidade foram realizados separadamente somente para esclarecer a metodologia para estimativa do valor total da contratação, não sendo de caráter restritivo em relação ao que poderá ser aplicado em cada Unidade quando houver necessidade de realização de obras/serviços. Em outras palavras, a 4ª SR/Codevasf poderá realizar obras/serviços objeto do Termo de Referência em qualquer Unidade em valor limitado ao total estimado do contrato."]
["5- Para o valor do 4ºCIB e da 4ºUEM, foi estimado que cada hectare custa R$12.065.83( Valor PPR/SR(SE)/SE/2022/MRT 6 – Litoral Norte e Baixo São Francisco (Valor Total do Imóvel - VTI). Além do CUB aplicado na área dos prédios. "]
["6- Para o 4º CIB, foram inclusos os prédio do Galpão do Projeto Amanhã, Viveiro de Mudas, Auditório, Prédio da Captação, Guarita, Alojamento..."]
[]
[]
[]
[]
[]
[{"$nulls":7},{"$f":"45+113+45","v":203}]

{"sheet":"Planilha","index":1,"n_rows":8,"n_cols":9,"rows_kept":8,"cut":false,"hidden":false,"merged":[[2,1,2,8],[0,0,0,8],[5,0,5,8]]}
[]
[]
[null,"CONTRATAÇÃO DE SERVIÇOS DE MANUTENÇÃO PREDIAL, PREVENTIVA E CORRETIVA, COM FORNECIMENTO DE MATERIAIS E MÃO-DE-OBRA, NAS EDIFICAÇÕES DA CODEVASF – 4ªSR, SITUADAS NOS MUNICÍPIOS DE ARACAJU, PROPRIÁ E NEÓPOLIS, NO ESTADO DE SERGIPE"]
[{"$nulls":7},"Data-base:","2024-10-01"]
[{"$nulls":7},"BDI:",{"$f":"BDI_serviços!C29","v":0.2354}]
["PLANILHA ORÇAMENTÁRIA - RESUMO"]
["CATSERV"," DISCRIMINAÇÃO ","UNIDADE","QUANTIDADE","CUSTO TOTAL\n(CODEVASF)","PREÇO TOTAL\n(CODEVASF)","CUSTO TOTAL (CONTRATADA)","PREÇO TOTAL (CONTRATADA)","DESCONTO (%)"]
[1627,"Manutenção predial, preventiva e corretiva, descritos na tabela SINAPI/SE, nas edificações da Codevasf – 4ªSR, situadas nos municípios de Aracaju, Propriá e Neópolis, no estado de Sergipe","un",1,{"$f":"F8*100%/(100%+I5)","v":737987.17824186489},{"$f":"Estimativa!M9","v":911709.36}]

{"sheet":"Manutenção","index":2,"n_rows":12,"n_cols":8,"rows_kept":12,"cut":false,"hidden":false,"merged":[[9,1,9,5],[1,0,1,7],[5,0,5,8]]}
[]
[{"$f":"Planilha!B3","v":"CONTRATAÇÃO DE SERVIÇOS DE MANUTENÇÃO PREDIAL, PREVENTIVA E CORRETIVA, COM FORNECIMENTO DE MATERIAIS E MÃO-DE-OBRA, NAS EDIFICAÇÕES DA CODEVASF – 4ªSR, SITUADAS NOS MUNICÍPIOS DE ARACAJU, PROPRIÁ E NEÓPOLIS, NO ESTADO DE SERGIPE"}]
[{"$nulls":6},"Data-base:","2024-10-01"]
[{"$nulls":6},"BDI Serviços:",0.2354]
[{"$nulls":6},"Prazo de Execução:","12 Meses"]
["PLANILHA ORÇAMENTÁRIA - MANUTENÇÕES PREVENTIVA E CORRETIVA"]
["ITEM"," DISCRIMINAÇÃO ","UNIDADE","QUANTIDADE","Valor Unitário","Valor Unitário c/ BDI","Valor Total","Percentual (%)"]
[1,"Manutenção preventiva, conforme composição","vb",1,{"$f":"G8*100%/(100%+H4)","v":74377.027683341425},{"$f":"ROUND(E8*$H$4+E8,2)","v":91885.38},{"$f":"'Manutenção Preventiva'!H19","v":91885.38},{"$f":"G8/G10","v":0.10078363130987271}]
[2,"Prestação de serviços de manutenção predial com fornecimento de peças, equipamentos, materiais e mão de obra, na forma estabelecida nas planilhas de serviços e insumos diversos descritos no Sistema Nacional de Pesquisa de Custos e Índices da Construção Civil (SINAPI-SE), nas edificações da 4ª Superintendência Regional da CODEVASF-4ªSR, conforme critérios e condições estabelecidos no Termo de Referência","vb",1,{"$f":"G9*100%/(100%+H4)","v":663610.15055852348},{"$f":"ROUND(E9*$H$4+E9,2)","v":819823.98},{"$f":"G12-G8","v":819823.98},{"$f":"G9/G10","v":0.89921636869012733}]
[{"$nulls":6},{"$f":"SUM(G8:G9)","v":911709.36},{"$f":"SUM(H8:H9)","v":1}]
[]
[{"$nulls":6},{"$f":"Planilha!F8","v":911709.36}]

{"sheet":"Manutenção Preventiva","index":3,"n_rows":21,"n_cols":12,"rows_kept":21,"cut":false,"hidden":false,"merged":[[20,0,20,9],[17,0,17,2],[17,5,17,6],[18,0,18,2],[18,5,18,6],[16,0,16,2],[16,5,16,6],[0,4,0,5],[0,6,0,7],[0,8,0,9],[1,4,1,5],[1,6,1,7],[1,8,1,9],[2,0,2,9]]}
[null,null,null,"Obra","Bancos",null,"B.D.I.",null,"Encargos Sociais"]
[null,null,null,"Manutenção Preventiva - 4ªSR - 2024","SINAPI - 08/2024 - Sergipe\nSBC - 10/2024 - Sergipe\nSICRO3 - 04/2024 - Sergipe\nORSE - 06/2024 - Sergipe\n",null,"23,54%",null,"Não Desonerado: \nHorista: 114,17%\nMensalista: 71,63%"]
["Orçamento Sintético - COMPOSIÇÃO MANUTENÇÃO PREVENTIVA"]
["Item","Código","Banco","Descrição","Und","Quant.","Valor Unit","Valor Unit com BDI","Total","Peso (%)"]
[" 1 ","  ",null,"Plano de Manutenção",null,1,"",11533.68,11533.68,0.12552247158361862,{"$f":"F5*G5","v":{"$error":"#VALUE!"}}]
[" 1.1 "," CODEVASF  028 ","Próprio","Realização de vistoria e elaboração de plano anual de manutenção das edificações","UNID",4,2334,2883.42,11533.68,0.12552247158361862,{"$f":"F6*G6","v":9336}]
[" 2 ","  ",null,"Manutenção Preventiva  - Mão de obra",null,1,"",74854.679999999993,74854.679999999993,0.81465277718827522,{"$error":"#VALUE!"}]
[" 2.1 "," 90778 ","SINAPI","ENGENHEIRO CIVIL DE OBRA PLENO COM ENCARGOS COMPLEMENTARES","H",192,125.89,155.52000000000001,29859.84,0.32496834643334988,24170.880000000001]
[" 2.2 "," 90776 ","SINAPI","ENCARREGADO GERAL COM ENCARGOS COMPLEMENTARES","H",192,31.92,39.43,7570.56,8.2391344520749657E-2,6128.64]
[" 2.3 "," CODEVASF 333 ","Próprio","Pedreiro, jornada de 8h/semana em horário comercial, para execução manutenções preventivas (inclusive ferramentas, com fornecimento de materiais básicos)","Mês",12,838.47,1035.8399999999999,12430.08,0.13527810409011748,10061.64]
[" 2.4 "," CODEVASF 334 ","Próprio","Bombeiro/Encanador Hidraulico, jornada de 8h/semana em horário comercial, para execução manutenções preventivas (inclusive ferramentas, com fornecimento de materiais básicos).","Mês",12,825.9,1020.31,12243.72,0.13324992506969008,9910.7999999999993]
[" 2.5 "," CODEVASF 335 ","Próprio","Eletricista, jornada de 8h/semana em horário comercial, para execução manutenções preventivas (inclusive ferramentas, com fornecimento de materiais básicos)","Mês",12,860.08,1062.54,12750.48,0.13876505707436809,10320.960000000001]
[" 3 ","  ",null,"Limpezas Periodicas",null,1,"",5497.02,5497.02,5.9824751228106147E-2,{"$f":"SUM(K5:K12)","v":{"$error":"#VALUE!"}},{"$f":"K13*23.54%","v":{"$error":"#VALUE!"}}]
[" 3.1 "," CODEVASF  024 ","Próprio","Limpeza e desinfecção química de reservatório de água","und",12,195.8,241.89,2902.68,3.1590226867429835E-2,{"$f":"SUM(I5:I12)","v":172776.72}]
[" 3.2 "," 12637 ","ORSE","Limpeza de fossa até 5m3","un",6,350,432.39,2594.34,2.8234524360676312E-2]
[]
[{"$nulls":5},"Total sem BDI",null,74378.52]
[{"$nulls":5},"Total do BDI",null,17506.86]
[{"$nulls":5},"Total Geral",null,91885.38]
[]
["_______________________________________________________________\nMorgane de Aguiar Chagas\nSetor de Engenharia"]

{"sheet":"Composição","index":4,"n_rows":152,"n_cols":10,"rows_kept":152,"cut":false,"hidden":false,"merged":[[151,0,151,2],[151,5,151,6],[151,7,151,9],[146,7,146,8],[149,0,149,2],[149,5,149,6],[149,7,149,9],[150,0,150,2],[150,5,150,6],[150,7,150,9],[140,4,140,5],[141,4,141,5],[142,4,142,5],[143,4,143,5],[144,4,144,5],[135,4,135,5],[136,4,136,5],[137,4,137,5],[138,4,138,5],[139,4,139,5],[128,4,128,5],[129,4,129,5],[130,4,130,5],[131,4,131,5],[133,7,133,8],[123,4,123,5],[124,4,124,5],[125,4,125,5],[126,4,126,5],[127,4,127,5],[116,4,116,5],[117,4,117,5],[118,4,118,5],[120,7,120,8],[122,4,122,5],[111,4,111,5],[112,4,112,5],[113,4,113,5],[114,4,114,5],[115,4,115,5],[104,4,104,5],[105,4,105,5],[107,7,107,8],[109,4,109,5],[110,4,110,5],[97,4,97,5],[98,4,98,5],[99,4,99,5],[101,7,101,8],[103,4,103,5],[89,7,89,8],[91,4,91,5],[92,4,92,5],[93,4,93,5],[95,7,95,8],[80,4,80,5],[81,4,81,5],[83,7,83,8],[85,4,85,5],[86,4,86,5],[66,7,66,8],[68,4,68,5],[69,4,69,5],[72,0,72,9],[76,7,76,8],[30,4,30,5],[31,4,31,5],[33,7,33,8],[38,4,38,5],[40,7,40,8],[37,4,37,5],[42,4,42,5],[43,4,43,5],[44,4,44,5],[45,4,45,5],[46,4,46,5],[51,4,51,5],[52,4,52,5],[47,4,47,5],[49,7,49,8],[53,4,53,5],[59,4,59,5],[60,4,60,5],[54,4,54,5],[26,4,26,5],[27,4,27,5],[28,4,28,5],[29,4,29,5],[35,4,35,5],[36,4,36,5],[2,0,2,9],[13,4,13,5],[18,4,18,5],[19,4,19,5],[20,4,20,5],[14,4,14,5],[15,4,15,5],[3,0,3,9],[4,4,4,5],[5,4,5,5],[6,4,6,5],[7,4,7,5],[8,4,8,5],[9,4,9,5],[11,7,11,8],[16,4,16,5],[17,4,17,5],[74,4,74,5],[78,0,78,9],[79,4,79,5],[87,4,87,5],[0,2,0,3],[0,4,0,5],[0,6,0,7],[0,8,0,9],[1,2,1,3],[1,4,1,5],[1,6,1,7],[1,8,1,9],[55,4,55,5],[57,7,57,8],[61,4,61,5],[62,4,62,5],[63,4,63,5],[64,4,64,5],[70,4,70,5],[71,4,71,5],[73,4,73,5],[22,7,22,8],[24,4,24,5],[25,4,25,5]]}
[null,null,"Composições Analíticas com Preço Unitário",null,"Bancos",null,"B.D.I.",null,"Encargos Sociais"]
[null,null,"Manutenção Preventiva - 4ªSR - 2024",null,"SINAPI - 08/2024 - Sergipe\nSBC - 10/2024 - Sergipe\nSICRO3 - 04/2024 - Sergipe\nORSE - 06/2024 - Sergipe\n",null,"23,54%",null,"Não Desonerado: \nHorista: 114,17%\nMensalista: 71,63%"]
["Composições Analíticas com Preço Unitário"]
["Composições Principais"]
[" 1.1 ","Código","Banco","Descrição","Tipo",null,"Und","Quant.","Valor Unit","Total"]
["Composição"," CODEVASF  028 ","Próprio","Realização de vistoria e elaboração de plano anual de manutenção das edificações","SEES - SERVIÇOS ESPECIAIS",null,"UNID",1,2334,2334]
["Insumo"," 00002707 ","SINAPI","ENGENHEIRO CIVIL DE OBRA PLENO (HORISTA)","Mão de Obra",null,"H",8,121.7,973.6]
["Insumo"," 00002350 ","SINAPI","AUXILIAR DE ESCRITORIO (HORISTA)","Mão de Obra",null,"H",8,13.62,108.96]
["Insumo"," 00004083 ","SINAPI","ENCARREGADO GERAL DE OBRAS (HORISTA)","Mão de Obra",null,"H",4,28.5,114]
["Insumo"," 00034783 ","SINAPI","ENGENHEIRO ELETRICISTA","Mão de Obra",null,"H",8,142.18,1137.44]
[{"$nulls":4},"MO sem LS =>",2334,"LS =>",0,"MO com LS =>",2334]
[{"$nulls":4},"Valor do BDI =>",549.41999999999996,null,"Valor com BDI =>",null,2883.42]
[]
[" 2.1 ","Código","Banco","Descrição","Tipo",null,"Und","Quant.","Valor Unit","Total"]
["Composição"," 90778 ","SINAPI","ENGENHEIRO CIVIL DE OBRA PLENO COM ENCARGOS COMPLEMENTARES","SEDI - SERVIÇOS DIVERSOS",null,"H",1,125.89,125.89]
["Composição Auxiliar"," 95403 ","SINAPI","CURSO DE CAPACITAÇÃO PARA ENGENHEIRO CIVIL DE OBRA PLENO (ENCARGOS COMPLEMENTARES) - HORISTA","SEDI - SERVIÇOS DIVERSOS",null,"H",1,2.06,2.06]
["Insumo"," 00043462 ","SINAPI","FERRAMENTAS - FAMILIA ENGENHEIRO CIVIL - HORISTA (ENCARGOS COMPLEMENTARES - COLETADO CAIXA)","Equipamento",null,"H",1,0.01,0.01]
["Insumo"," 00043486 ","SINAPI","EPI - FAMILIA ENGENHEIRO CIVIL - HORISTA (ENCARGOS COMPLEMENTARES - COLETADO CAIXA)","Equipamento",null,"H",1,0.74,0.74]
["Insumo"," 00002707 ","SINAPI","ENGENHEIRO CIVIL DE OBRA PLENO (HORISTA)","Mão de Obra",null,"H",1,121.7,121.7]
["Insumo"," 00037373 ","SINAPI","SEGURO - HORISTA (COLETADO CAIXA - ENCARGOS COMPLEMENTARES)","Taxas",null,"H",1,0.04,0.04]
["Insumo"," 00037372 ","SINAPI","EXAMES - HORISTA (COLETADO CAIXA - ENCARGOS COMPLEMENTARES)","Material",null,"H",1,1.34,1.34]
[{"$nulls":4},"MO sem LS =>",123.76,"LS =>",0,"MO com LS =>",123.76]
[{"$nulls":4},"Valor do BDI =>",29.63,null,"Valor com BDI =>",null,155.52000000000001]
[]
[" 2.2 ","Código","Banco","Descrição","Tipo",null,"Und","Quant.","Valor Unit","Total"]
["Composição"," 90776 ","SINAPI","ENCARREGADO GERAL COM ENCARGOS COMPLEMENTARES","SEDI - SERVIÇOS DIVERSOS",null,"H",1,31.92,31.92]
["Composição Auxiliar"," 95401 ","SINAPI","CURSO DE CAPACITAÇÃO PARA ENCARREGADO GERAL (ENCARGOS COMPLEMENTARES) - HORISTA","SEDI - SERVIÇOS DIVERSOS",null,"H",1,0.69,0.69]
["Insumo"," 00043463 ","SINAPI","FERRAMENTAS - FAMILIA ENCARREGADO GERAL - HORISTA (ENCARGOS COMPLEMENTARES - COLETADO CAIXA)","Equipamento",null,"H",1,0.1,0.1]
["Insumo"," 00043487 ","SINAPI","EPI - FAMILIA ENCARREGADO GERAL - HORISTA (ENCARGOS COMPLEMENTARES - COLETADO CAIXA)","Equipamento",null,"H",1,1.25,1.25]
["Insumo"," 00037372 ","SINAPI","EXAMES - HORISTA (COLETADO CAIXA - ENCARGOS COMPLEMENTARES)","Material",null,"H",1,1.34,1.34]
["Insumo"," 00037373 ","SINAPI","SEGURO - HORISTA (COLETADO CAIXA - ENCARGOS COMPLEMENTARES)","Taxas",null,"H",1,0.04,0.04]
["Insumo"," 00004083 ","SINAPI","ENCARREGADO GERAL DE OBRAS (HORISTA)","Mão de Obra",null,"H",1,28.5,28.5]
[{"$nulls":4},"MO sem LS =>",29.19,"LS =>",0,"MO com LS =>",29.19]
[{"$nulls":4},"Valor do BDI =>",7.51,null,"Valor com BDI =>",null,39.43]
[]
[" 2.3 ","Código","Banco","Descrição","Tipo",null,"Und","Quant.","Valor Unit","Total"]
["Composição"," CODEVASF 333 ","Próprio","Pedreiro, jornada de 8h/semana em horário comercial, para execução manutenções preventivas (inclusive ferramentas, com fornecimento de materiais básicos)","SEOP - SERVIÇOS OPERACIONAIS",null,"Mês",1,838.47,838.47]
["Composição Auxiliar"," 88309 ","SINAPI","PEDREIRO COM ENCARGOS COMPLEMENTARES","SEDI - SERVIÇOS DIVERSOS",null,"H",32,26.15,836.8]
["Insumo"," 00034353 ","SINAPI","ARGAMASSA COLANTE AC II","Material",null,"KG",1,1.67,1.67]
[{"$nulls":4},"MO sem LS =>",626.55999999999995,"LS =>",0,"MO com LS =>",626.55999999999995]
[{"$nulls":4},"Valor do BDI =>",197.37,null,"Valor com BDI =>",null,1035.8399999999999]
[]
[" 2.4 ","Código","Banco","Descrição","Tipo",null,"Und","Quant.","Valor Unit","Total"]
["Composição"," CODEVASF 334 ","Próprio","Bombeiro/Encanador Hidraulico, jornada de 8h/semana em horário comercial, para execução manutenções preventivas (inclusive ferramentas, com fornecimento de materiais básicos).","ASTU - ASSENTAMENTO DE TUBOS E PECAS",null,"Mês",1,825.9,825.9]
["Composição Auxiliar"," 88267 ","SINAPI","ENCANADOR OU BOMBEIRO HIDRÁULICO COM ENCARGOS COMPLEMENTARES","SEDI - SERVIÇOS DIVERSOS",null,"H",32,25.39,812.48]
["Insumo"," 00000119 ","SINAPI","ADESIVO PLASTICO PARA PVC, BISNAGA COM 75 GR","Material",null,"UN",1,7.9,7.9]
["Insumo"," 00038383 ","SINAPI","LIXA D'AGUA EM FOLHA, GRAO 100","Material",null,"UN",1,2.52,2.52]
["Insumo"," 00003146 ","SINAPI","FITA VEDA ROSCA EM ROLOS DE 18 MM X 10 M (L X C)","Material",null,"UN",1,3,3]
[{"$nulls":4},"MO sem LS =>",624.32000000000005,"LS =>",0,"MO com LS =>",624.32000000000005]
[{"$nulls":4},"Valor do BDI =>",194.41,null,"Valor com BDI =>",null,1020.31]
[]
[" 2.5 ","Código","Banco","Descrição","Tipo",null,"Und","Quant.","Valor Unit","Total"]
["Composição"," CODEVASF 335 ","Próprio","Eletricista, jornada de 8h/semana em horário comercial, para execução manutenções preventivas (inclusive ferramentas, com fornecimento de materiais básicos)","INEL - INSTALAÇÃO ELÉTRICA/ELETRIFICAÇÃO E ILUMINAÇÃO EXTERNA",null,"Mês",1,860.08,860.08]
["Composição Auxiliar"," 88264 ","SINAPI","ELETRICISTA COM ENCARGOS COMPLEMENTARES","SEDI - SERVIÇOS DIVERSOS",null,"H",32,26.5,848]
["Insumo"," 00021127 ","SINAPI","FITA ISOLANTE ADESIVA ANTICHAMA, USO ATE 750 V, EM ROLO DE 19 MM X 5 M","Material",null,"UN",2,4.4400000000000004,8.8800000000000008]
["Insumo"," 00000404 ","SINAPI","FITA ISOLANTE DE BORRACHA AUTOFUSAO, USO ATE 69 KV (ALTA TENSAO)","Material",null,"M",2,1.6,3.2]
[{"$nulls":4},"MO sem LS =>",638.08000000000004,"LS =>",0,"MO com LS =>",638.08000000000004]
[{"$nulls":4},"Valor do BDI =>",202.46,null,"Valor com BDI =>",null,1062.54]
[]
[" 3.1 ","Código","Banco","Descrição","Tipo",null,"Und","Quant.","Valor Unit","Total"]
["Composição"," CODEVASF  024 ","Próprio","Limpeza e desinfecção química de reservatório de água","INHI - INSTALAÇÕES HIDROS SANITÁRIAS",null,"und",1,195.8,195.8]
["Insumo"," 615 ","ORSE","Cloro líquido para limpeza e desinfecção","Material",null,"l",3,6.5,19.5]
["Insumo"," 00002696 ","SINAPI","ENCANADOR OU BOMBEIRO HIDRAULICO (HORISTA)","Mão de Obra",null,"H",5,19.12,95.6]
["Insumo"," 00000012 ","SINAPI","ESCOVA DE ACO, COM CABO, *4 X 15* FILEIRAS DE CERDAS","Material",null,"UN",1,11,11]
["Insumo"," 00000246 ","SINAPI","AUXILIAR DE ENCANADOR OU BOMBEIRO HIDRAULICO (HORISTA)","Mão de Obra",null,"H",5,13.94,69.7]
[{"$nulls":4},"MO sem LS =>",165.3,"LS =>",0,"MO com LS =>",165.3]
[{"$nulls":4},"Valor do BDI =>",46.09,null,"Valor com BDI =>",null,241.89]
[]
[" 3.2 ","Código","Banco","Descrição","Tipo",null,"Und","Quant.","Valor Unit","Total"]
["Composição"," 12637 ","ORSE","Limpeza de fossa até 5m3","Fossas Sépticas",null,"un",1,350,350]
[null,"Código","Banco","Descrição","Tipo",null,"Und","Quant.","Valor Unit","Total"]
["Insumo",13425,"ORSE","Limpeza de fossa até 5m3","Serviços",null,"un",1,"350,00","350,00"]
["Detalhamento de Cálculo ORSE"]
[null,"Código","Banco","Descrição","Tipo",null,"Und","Quant.","Valor Unit","Total"]
["Insumo",13425,"ORSE","Limpeza de fossa até 5m3","Serviços",null,"un",1,"350,00","350,00"]
[{"$nulls":4},"MO sem LS =>",0,"LS =>",0,"MO com LS =>",0]
[{"$nulls":4},"Valor do BDI =>",82.39,null,"Valor com BDI =>",null,432.39]
[]
["Composições Auxiliares"]
[null,"Código","Banco","Descrição","Tipo",null,"Und","Quant.","Valor Unit","Total"]
["Composição"," 95332 ","SINAPI","CURSO DE CAPACITAÇÃO PARA ELETRICISTA (ENCARGOS COMPLEMENTARES) - HORISTA","SEDI - SERVIÇOS DIVERSOS",null,"H",1,0.82,0.82]
["Insumo"," 00002436 ","SINAPI","ELETRICISTA (HORISTA)","Mão de Obra",null,"H",4.2970000000000001E-2,19.12,0.82]
[{"$nulls":4},"MO sem LS =>",0.82,"LS =>",0,"MO com LS =>",0.82]
[{"$nulls":4},"Valor do BDI =>",0.19,null,"Valor com BDI =>",null,1.01]
[]
[null,"Código","Banco","Descrição","Tipo",null,"Und","Quant.","Valor Unit","Total"]
["Composição"," 95335 ","SINAPI","CURSO DE CAPACITAÇÃO PARA ENCANADOR OU BOMBEIRO HIDRÁULICO (ENCARGOS COMPLEMENTARES) - HORISTA","SEDI - SERVIÇOS DIVERSOS",null,"H",1,0.39,0.39]
["Insumo"," 00002696 ","SINAPI","ENCANADOR OU BOMBEIRO HIDRAULICO (HORISTA)","Mão de Obra",null,"H",2.07E-2,19.12,0.39]
[{"$nulls":4},"MO sem LS =>",0.39,"LS =>",0,"MO com LS =>",0.39]
[{"$nulls":4},"Valor do BDI =>",0.09,null,"Valor com BDI =>",null,0.48]
[]
[null,"Código","Banco","Descrição","Tipo",null,"Und","Quant.","Valor Unit","Total"]
["Composição"," 95401 ","SINAPI","CURSO DE CAPACITAÇÃO PARA ENCARREGADO GERAL (ENCARGOS COMPLEMENTARES) - HORISTA","SEDI - SERVIÇOS DIVERSOS",null,"H",1,0.69,0.69]
["Insumo"," 00004083 ","SINAPI","ENCARREGADO GERAL DE OBRAS (HORISTA)","Mão de Obra",null,"H",2.4420000000000001E-2,28.5,0.69]
[{"$nulls":4},"MO sem LS =>",0.69,"LS =>",0,"MO com LS =>",0.69]
[{"$nulls":4},"Valor do BDI =>",0.16,null,"Valor com BDI =>",null,0.85]
[]
[null,"Código","Banco","Descrição","Tipo",null,"Und","Quant.","Valor Unit","Total"]
["Composição"," 95403 ","SINAPI","CURSO DE CAPACITAÇÃO PARA ENGENHEIRO CIVIL DE OBRA PLENO (ENCARGOS COMPLEMENTARES) - HORISTA","SEDI - SERVIÇOS DIVERSOS",null,"H",1,2.06,2.06]
["Insumo"," 00002707 ","SINAPI","ENGENHEIRO CIVIL DE OBRA PLENO (HORISTA)","Mão de Obra",null,"H",1.6990000000000002E-2,121.7,2.06]
[{"$nulls":4},"MO sem LS =>",2.06,"LS =>",0,"MO com LS =>",2.06]
[{"$nulls":4},"Valor do BDI =>",0.48,null,"Valor com BDI =>",null,2.54]
[]
[null,"Código","Banco","Descrição","Tipo",null,"Und","Quant.","Valor Unit","Total"]
["Composição"," 95371 ","SINAPI","CURSO DE CAPACITAÇÃO PARA PEDREIRO (ENCARGOS COMPLEMENTARES) - HORISTA","SEDI - SERVIÇOS DIVERSOS",null,"H",1,0.46,0.46]
["Insumo"," 00004750 ","SINAPI","PEDREIRO (HORISTA)","Mão de Obra",null,"H",2.4420000000000001E-2,19.12,0.46]
[{"$nulls":4},"MO sem LS =>",0.46,"LS =>",0,"MO com LS =>",0.46]
[{"$nulls":4},"Valor do BDI =>",0.1,null,"Valor com BDI =>",null,0.56000000000000005]
[]
[null,"Código","Banco","Descrição","Tipo",null,"Und","Quant.","Valor Unit","Total"]
["Composição"," 88264 ","SINAPI","ELETRICISTA COM ENCARGOS COMPLEMENTARES","SEDI - SERVIÇOS DIVERSOS",null,"H",1,26.5,26.5]
["Composição Auxiliar"," 95332 ","SINAPI","CURSO DE CAPACITAÇÃO PARA ELETRICISTA (ENCARGOS COMPLEMENTARES) - HORISTA","SEDI - SERVIÇOS DIVERSOS",null,"H",1,0.82,0.82]
["Insumo"," 00043460 ","SINAPI","FERRAMENTAS - FAMILIA ELETRICISTA - HORISTA (ENCARGOS COMPLEMENTARES - COLETADO CAIXA)","Equipamento",null,"H",1,0.85,0.85]
["Insumo"," 00037370 ","SINAPI","ALIMENTACAO - HORISTA (COLETADO CAIXA - ENCARGOS COMPLEMENTARES)","Material",null,"H",1,2.39,2.39]
["Insumo"," 00043484 ","SINAPI","EPI - FAMILIA ELETRICISTA - HORISTA (ENCARGOS COMPLEMENTARES - COLETADO CAIXA)","Equipamento",null,"H",1,1.2,1.2]
["Insumo"," 00002436 ","SINAPI","ELETRICISTA (HORISTA)","Mão de Obra",null,"H",1,19.12,19.12]
["Insumo"," 00037373 ","SINAPI","SEGURO - HORISTA (COLETADO CAIXA - ENCARGOS COMPLEMENTARES)","Taxas",null,"H",1,0.04,0.04]
["Insumo"," 00037372 ","SINAPI","EXAMES - HORISTA (COLETADO CAIXA - ENCARGOS COMPLEMENTARES)","Material",null,"H",1,1.34,1.34]
["Insumo"," 00037371 ","SINAPI","TRANSPORTE - HORISTA (COLETADO CAIXA - ENCARGOS COMPLEMENTARES)","Serviços",null,"H",1,0.74,0.74]
[{"$nulls":4},"MO sem LS =>",19.940000000000001,"LS =>",0,"MO com LS =>",19.940000000000001]
[{"$nulls":4},"Valor do BDI =>",6.23,null,"Valor com BDI =>",null,32.729999999999997]
[]
[null,"Código","Banco","Descrição","Tipo",null,"Und","Quant.","Valor Unit","Total"]
["Composição"," 88267 ","SINAPI","ENCANADOR OU BOMBEIRO HIDRÁULICO COM ENCARGOS COMPLEMENTARES","SEDI - SERVIÇOS DIVERSOS",null,"H",1,25.39,25.39]
["Composição Auxiliar"," 95335 ","SINAPI","CURSO DE CAPACITAÇÃO PARA ENCANADOR OU BOMBEIRO HIDRÁULICO (ENCARGOS COMPLEMENTARES) - HORISTA","SEDI - SERVIÇOS DIVERSOS",null,"H",1,0.39,0.39]
["Insumo"," 00037372 ","SINAPI","EXAMES - HORISTA (COLETADO CAIXA - ENCARGOS COMPLEMENTARES)","Material",null,"H",1,1.34,1.34]
["Insumo"," 00043461 ","SINAPI","FERRAMENTAS - FAMILIA ENCANADOR - HORISTA (ENCARGOS COMPLEMENTARES - COLETADO CAIXA)","Equipamento",null,"H",1,0.31,0.31]
["Insumo"," 00002696 ","SINAPI","ENCANADOR OU BOMBEIRO HIDRAULICO (HORISTA)","Mão de Obra",null,"H",1,19.12,19.12]
["Insumo"," 00043485 ","SINAPI","EPI - FAMILIA ENCANADOR - HORISTA (ENCARGOS COMPLEMENTARES - COLETADO CAIXA)","Equipamento",null,"H",1,1.06,1.06]
["Insumo"," 00037371 ","SINAPI","TRANSPORTE - HORISTA (COLETADO CAIXA - ENCARGOS COMPLEMENTARES)","Serviços",null,"H",1,0.74,0.74]
["Insumo"," 00037373 ","SINAPI","SEGURO - HORISTA (COLETADO CAIXA - ENCARGOS COMPLEMENTARES)","Taxas",null,"H",1,0.04,0.04]
["Insumo"," 00037370 ","SINAPI","ALIMENTACAO - HORISTA (COLETADO CAIXA - ENCARGOS COMPLEMENTARES)","Material",null,"H",1,2.39,2.39]
[{"$nulls":4},"MO sem LS =>",19.510000000000002,"LS =>",0,"MO com LS =>",19.510000000000002]
[{"$nulls":4},"Valor do BDI =>",5.97,null,"Valor com BDI =>",null,31.36]
[]
[null,"Código","Banco","Descrição","Tipo",null,"Und","Quant.","Valor Unit","Total"]
["Composição"," 88309 ","SINAPI","PEDREIRO COM ENCARGOS COMPLEMENTARES","SEDI - SERVIÇOS DIVERSOS",null,"H",1,26.15,26.15]
["Composição Auxiliar"," 95371 ","SINAPI","CURSO DE CAPACITAÇÃO PARA PEDREIRO (ENCARGOS COMPLEMENTARES) - HORISTA","SEDI - SERVIÇOS DIVERSOS",null,"H",1,0.46,0.46]
["Insumo"," 00037370 ","SINAPI","ALIMENTACAO - HORISTA (COLETADO CAIXA - ENCARGOS COMPLEMENTARES)","Material",null,"H",1,2.39,2.39]
["Insumo"," 00004750 ","SINAPI","PEDREIRO (HORISTA)","Mão de Obra",null,"H",1,19.12,19.12]
["Insumo"," 00043489 ","SINAPI","EPI - FAMILIA PEDREIRO - HORISTA (ENCARGOS COMPLEMENTARES - COLETADO CAIXA)","Equipamento",null,"H",1,1.24,1.24]
["Insumo"," 00043465 ","SINAPI","FERRAMENTAS - FAMILIA PEDREIRO - HORISTA (ENCARGOS COMPLEMENTARES - COLETADO CAIXA)","Equipamento",null,"H",1,0.82,0.82]
["Insumo"," 00037373 ","SINAPI","SEGURO - HORISTA (COLETADO CAIXA - ENCARGOS COMPLEMENTARES)","Taxas",null,"H",1,0.04,0.04]
["Insumo"," 00037371 ","SINAPI","TRANSPORTE - HORISTA (COLETADO CAIXA - ENCARGOS COMPLEMENTARES)","Serviços",null,"H",1,0.74,0.74]
["Insumo"," 00037372 ","SINAPI","EXAMES - HORISTA (COLETADO CAIXA - ENCARGOS COMPLEMENTARES)","Material",null,"H",1,1.34,1.34]
[{"$nulls":4},"MO sem LS =>",19.579999999999998,"LS =>",0,"MO com LS =>",19.579999999999998]
[{"$nulls":4},"Valor do BDI =>",6.15,null,"Valor com BDI =>",null,32.299999999999997]
[]
[]
[{"$nulls":5},"Total sem BDI",null,74378.52]
[{"$nulls":5},"Total do BDI",null,17506.86]
[{"$nulls":5},"Total Geral",null,91885.38]

{"sheet":"BDI_materiais","index":5,"n_rows":29,"n_cols":3,"rows_kept":29,"cut":false,"hidden":false,"merged":[[28,0,28,1],[0,0,0,2],[1,0,1,2],[3,0,3,2],[5,0,5,2],[15,0,15,2]]}
[{"$f":"Planilha!B3","v":"CONTRATAÇÃO DE SERVIÇOS DE MANUTENÇÃO PREDIAL, PREVENTIVA E CORRETIVA, COM FORNECIMENTO DE MATERIAIS E MÃO-DE-OBRA, NAS EDIFICAÇÕES DA CODEVASF – 4ªSR, SITUADAS NOS MUNICÍPIOS DE ARACAJU, PROPRIÁ E NEÓPOLIS, NO ESTADO DE SERGIPE"}]
["DOCUMENTO: DETALHAMENTO DA BONIFICAÇÃO E DESPESAS INDIRETAS - MATERIAIS"]
[]
["FÓRMULA APLICADA"]
[]
["BDI = { [ ( 1 + AC / 100  + R / 100 + SG/100 ) . ( 1 + DF / 100 ) . ( 1 + L / 100 ) / ( 1 - I / 100 ) ] - 1 } . 100"]
[]
["ONDE:"]
["BDI =","Bonificação e Despesas Indiretas"]
["AC =","Administração Central"]
["SG=","Seguros e garantias"]
["DF =","Despesas Financeiras"]
["R =","Riscos"]
["L =","Lucro"]
["I =","Impostos"]
["FORNECIMENTO DE MATERIAIS"]
[]
["ITEM","DESCRIÇÃO","PERCENTUAIS    (%)"]
[1,"Administração Central",3.45]
[2,"Seguros e garantias",0.48]
[3,"Riscos",0.85]
[4,"Despesas Financeiras",0.85]
[5,"Lucro",5.1100000000000003]
[6,"Impostos",{"$f":"SUM(C25:C28)","v":3.65}]
["6.1","PIS",0.65]
["6.2","COFINS",3]
["6.3","ISS",0]
["6.4","IPRB",0]
["BDI",null,{"$f":"ROUND((((1+C19/100+C20/100+C21/100)*(1+C22/100)*(1+C23/100))/(1-C24/100))-1,4)","v":0.15279999999999999}]

{"sheet":"BDI_serviços","index":6,"n_rows":29,"n_cols":3,"rows_kept":29,"cut":false,"hidden":false,"merged":[[28,0,28,1],[0,0,0,2],[1,0,1,2],[3,0,3,2],[5,0,5,2],[15,0,15,2]]}
[{"$f":"Planilha!B3","v":"CONTRATAÇÃO DE SERVIÇOS DE MANUTENÇÃO PREDIAL, PREVENTIVA E CORRETIVA, COM FORNECIMENTO DE MATERIAIS E MÃO-DE-OBRA, NAS EDIFICAÇÕES DA CODEVASF – 4ªSR, SITUADAS NOS MUNICÍPIOS DE ARACAJU, PROPRIÁ E NEÓPOLIS, NO ESTADO DE SERGIPE"}]
["DOCUMENTO: DETALHAMENTO DA BONIFICAÇÃO E DESPESAS INDIRETAS - SERVIÇOS"]
[]
["FÓRMULA APLICADA"]
[]
["BDI = { [ ( 1 + AC / 100  + R / 100 + SG/100 ) . ( 1 + DF / 100 ) . ( 1 + L / 100 ) / ( 1 - I / 100 ) ] - 1 } . 100"]
[]
["ONDE:"]
["BDI =","Bonificação e Despesas Indiretas"]
["AC =","Administração Central"]
["SG=","Seguros e garantias"]
["DF =","Despesas Financeiras"]
["R =","Riscos"]
["L =","Lucro"]
["I =","Impostos"]
["EXECUÇÃO DE SERVIÇOS"]
[]
["ITEM","DESCRIÇÃO","PERCENTUAIS    (%)"]
[1,"Administração Central",3.91]
[2,"Seguros e garantias",0.8]
[3,"Riscos",0.97]
[4,"Despesas Financeiras",0.59]
[5,"Lucro",6.16]
[6,"Impostos",{"$f":"SUM(C25:C28)","v":8.65}]
["6.1","PIS",0.65]
["6.2","COFINS",3]
["6.3","ISS",5]
["6.4","IPRB",0]
["BDI",null,{"$f":"ROUND((((1+C19/100+C20/100+C21/100)*(1+C22/100)*(1+C23/100))/(1-C24/100))-1,4)","v":0.2354}]

{"sheet":"Encargos Sociais","index":7,"n_rows":44,"n_cols":4,"rows_kept":44,"cut":false,"hidden":false,"merged":[[28,0,28,1],[5,1,5,3],[17,1,17,3],[42,0,42,3],[43,0,43,1],[29,0,29,3],[30,1,30,3],[36,0,36,1],[38,1,38,3],[41,0,41,1],[2,0,2,2],[1,0,1,3],[0,0,0,3],[16,0,16,3],[3,0,4,1],[15,0,15,1]]}
[{"$f":"Planilha!B3","v":"CONTRATAÇÃO DE SERVIÇOS DE MANUTENÇÃO PREDIAL, PREVENTIVA E CORRETIVA, COM FORNECIMENTO DE MATERIAIS E MÃO-DE-OBRA, NAS EDIFICAÇÕES DA CODEVASF – 4ªSR, SITUADAS NOS MUNICÍPIOS DE ARACAJU, PROPRIÁ E NEÓPOLIS, NO ESTADO DE SERGIPE"}]
["DETALHAMENTO DOS ENCARGOS SOCIAS - SEM DESONERAÇÃO"]
[]
["DISCRIMINAÇÃO",null,"Horista","Mensalista"]
[null,null,"%","%"]
["A","ENCARGOS SOCIAIS BÁSICOS"]
["A1","INSS",0.2,0.2]
["A2","SESI",1.4999999999999999E-2,1.4999999999999999E-2]
["A3","SENAI",0.01,0.01]
["A4","INCRA",2E-3,2E-3]
["A5","SEBRAE",6.0000000000000001E-3,6.0000000000000001E-3]
["A6","SALÁRIO EDUCAÇÃO",2.5000000000000001E-2,2.5000000000000001E-2]
["A7","SEGURO CONTRA ACIDENTE DE TRABALHO",0.03,0.03]
["A8","FGTS",0.08,0.08]
["A9","SECONCI",0.01,0.01]
["SUBTOTAL DE \"A\"",null,{"$f":"SUM(C7:C15)","v":0.37800000000000006},{"$f":"SUM(D7:D15)","v":0.37800000000000006}]
[]
["B","ENCARGOS SOCIAIS QUE RECEBEM INCIDÊNCIA DE \"A\""]
["B1","Repouso Semanal Remunerado",0.1792]
["B2","Feriados",3.95E-2]
["B3","Auxílio-Enfermidade",8.9999999999999993E-3,6.8999999999999999E-3]
["B4","13º Salário",0.108,8.3299999999999999E-2]
["B5","Licença Paternidade",8.0000000000000004E-4,5.9999999999999995E-4]
["B6","Faltas Justificadas",7.1999999999999998E-3,5.5999999999999999E-3]
["B7","Dias de Chuvas",1.72E-2,0]
["B8","Auxílio Acidente de Trabalho",1.1999999999999999E-3,8.9999999999999998E-4]
["B9","Férias Gozadas",8.09E-2,6.2399999999999997E-2]
["B10","Salário Maternidade",2.9999999999999997E-4,2.0000000000000001E-4]
["SUBTOTAL DE \"B\"",null,{"$f":"SUM(C19:C28)","v":0.44329999999999997},{"$f":"SUM(D19:D28)","v":0.15990000000000001}]
[]
["C","ENCENCARGOS SOCIAIS QUE NÃO RECEBEM INCIDÊNCIA DE \"A\""]
["C1","Aviso Prévio Indenizado",4.8099999999999997E-2,3.7100000000000001E-2]
["C2","Aviso Prévio Trabalhado",1.1000000000000001E-3,8.9999999999999998E-4]
["C3","Férias Indenizadas",4.8599999999999997E-2,3.7499999999999999E-2]
["C4","Depósito Rescisão Sem Justa Causa",4.6699999999999998E-2,3.61E-2]
["C5","Indenização Adicional",4.0000000000000001E-3,3.0999999999999999E-3]
["SUBTOTAL DE \"C\"",null,{"$f":"SUM(C32:C36)","v":0.14849999999999999},{"$f":"SUM(D32:D36)","v":0.11470000000000001}]
[]
["D","REINCIDÊNCIAS"]
["D1","Reincidência de Grupo A sobre Grupo B\n",0.1676,6.0400000000000002E-2]
["D2","Reincidência de Grupo A sobre Aviso Prévio Trabalhado e\nReincidência do FGTS sobre Aviso Prévio Indenizado",4.3E-3,3.3E-3]
["SUBTOTAL DE \"D\"",null,{"$f":"SUM(C40:C41)","v":0.1719},{"$f":"SUM(D40:D41)","v":6.3700000000000007E-2}]
[]
["TOTAIS DE ENCARGOS SOCIAIS",null,{"$f":"C16+C29+C37+C42","v":1.1416999999999999},{"$f":"D16+D29+D37+D42","v":0.71630000000000005}]